[Event "Early-Titled-Tuesday-Blitz-April-16-2024"]
[Site "Chess.com"]
[Date "2024.04.16"]
[Round "5"]
[White "Nf3c5"]
[Black "dvglko"]
[Result "1/2-1/2"]
[WhiteElo "2609"]
[BlackElo "2474"]
[TimeControl "180+1"]
[EndTime "8:57:30 PDT"]
[Termination "Game drawn - insufficient material"]

1. e4 {[%clk 0:03:00.9]} 1... c6 {[%clk 0:02:58.2]} 2. d4 {[%clk 0:03:00]} 2...
d5 {[%clk 0:02:58.7]} 3. exd5 {[%clk 0:03:00.6]} 3... cxd5 {[%clk 0:02:58.7]} 4.
Bd3 {[%clk 0:03:01.2]} 4... Nc6 {[%clk 0:02:58.9]} 5. c3 {[%clk 0:03:01.9]} 5...
Nf6 {[%clk 0:02:59.3]} 6. Bf4 {[%clk 0:03:02.4]} 6... Qb6 {[%clk 0:02:57.9]} 7.
Qb3 {[%clk 0:03:00.8]} 7... g6 {[%clk 0:02:36.3]} 8. Na3 {[%clk 0:02:49.1]} 8...
Nh5 {[%clk 0:02:15.1]} 9. Be3 {[%clk 0:02:35.1]} 9... Nf6 {[%clk 0:01:50.5]} 10.
Bf4 {[%clk 0:02:32.4]} 10... Nh5 {[%clk 0:01:50.5]} 11. Qxb6 {[%clk 0:02:29.9]}
11... axb6 {[%clk 0:01:50.1]} 12. Bc7 {[%clk 0:02:30.8]} 12... e5 {[%clk
0:01:36.1]} 13. Nb5 {[%clk 0:02:14.6]} 13... Nf4 {[%clk 0:01:14.6]} 14. Bf1
{[%clk 0:02:10.9]} 14... Ne6 {[%clk 0:01:09.6]} 15. Bxe5 {[%clk 0:01:49]} 15...
Nxe5 {[%clk 0:01:08.7]} 16. dxe5 {[%clk 0:01:49.8]} 16... Bg7 {[%clk 0:00:58.2]}
17. Nf3 {[%clk 0:01:22.1]} 17... O-O {[%clk 0:00:58.3]} 18. a3 {[%clk
0:01:19.3]} 18... Bd7 {[%clk 0:00:58.5]} 19. O-O-O {[%clk 0:01:18.4]} 19... Bc6
{[%clk 0:00:58.2]} 20. Kb1 {[%clk 0:01:12.5]} 20... Nc5 {[%clk 0:00:51.9]} 21.
Be2 {[%clk 0:01:01.9]} 21... Ne4 {[%clk 0:00:47.1]} 22. Rhf1 {[%clk 0:01:02.2]}
22... Ra5 {[%clk 0:00:25.4]} 23. Nbd4 {[%clk 0:00:38.1]} 23... Re8 {[%clk
0:00:24.7]} 24. Bd3 {[%clk 0:00:38.6]} 24... Bxe5 {[%clk 0:00:22.1]} 25. Nxe5
{[%clk 0:00:38.6]} 25... Rxe5 {[%clk 0:00:23]} 26. f3 {[%clk 0:00:36.5]} 26...
Nc5 {[%clk 0:00:20.2]} 27. b4 {[%clk 0:00:31.7]} 27... Rxa3 {[%clk 0:00:18.8]}
28. bxc5 {[%clk 0:00:31.1]} 28... bxc5 {[%clk 0:00:19.3]} 29. Nxc6 {[%clk
0:00:30]} 29... bxc6 {[%clk 0:00:20.2]} 30. Kb2 {[%clk 0:00:30.2]} 30... Ra7
{[%clk 0:00:17.8]} 31. Rfe1 {[%clk 0:00:30.5]} 31... Rg5 {[%clk 0:00:17]} 32. g4
{[%clk 0:00:29.6]} 32... c4 {[%clk 0:00:16.7]} 33. Bc2 {[%clk 0:00:29.4]} 33...
Rb7+ {[%clk 0:00:16.6]} 34. Kc1 {[%clk 0:00:29.3]} 34... f6 {[%clk 0:00:16.7]}
35. h4 {[%clk 0:00:29.2]} 35... Re5 {[%clk 0:00:17.3]} 36. f4 {[%clk 0:00:27.5]}
36... Rxe1 {[%clk 0:00:15.4]} 37. Rxe1 {[%clk 0:00:28.4]} 37... Kf7 {[%clk
0:00:15.2]} 38. h5 {[%clk 0:00:26.3]} 38... Ra7 {[%clk 0:00:12.4]} 39. g5 {[%clk
0:00:20.3]} 39... Ra1+ {[%clk 0:00:10.5]} 40. Bb1 {[%clk 0:00:20.5]} 40... Ra3
{[%clk 0:00:09.8]} 41. Kd2 {[%clk 0:00:17.8]} 41... c5 {[%clk 0:00:09.2]} 42. h6
{[%clk 0:00:11.2]} 42... d4 {[%clk 0:00:08.3]} 43. Rc1 {[%clk 0:00:10.8]} 43...
d3 {[%clk 0:00:07]} 44. Re1 {[%clk 0:00:09.8]} 44... Rb3 {[%clk 0:00:06.5]} 45.
Rc1 {[%clk 0:00:04.3]} 45... Rb2+ {[%clk 0:00:06.3]} 46. Ke3 {[%clk 0:00:04.7]}
46... Re2+ {[%clk 0:00:04.5]} 47. Kf3 {[%clk 0:00:05]} 47... fxg5 {[%clk
0:00:03.4]} 48. fxg5 {[%clk 0:00:04.9]} 48... Ke6 {[%clk 0:00:03.7]} 49. Rf1
{[%clk 0:00:03.4]} 49... Rh2 {[%clk 0:00:01.8]} 50. Kg3 {[%clk 0:00:03.1]} 50...
Re2 {[%clk 0:00:01.8]} 51. Rd1 {[%clk 0:00:02.6]} 51... Ke5 {[%clk 0:00:02.1]}
52. Bxd3 {[%clk 0:00:03.2]} 52... cxd3 {[%clk 0:00:02.2]} 53. Rxd3 {[%clk
0:00:04.1]} 53... Rc2 {[%clk 0:00:02.8]} 54. Rd7 {[%clk 0:00:04.2]} 54... Rxc3+
{[%clk 0:00:03.4]} 55. Kg4 {[%clk 0:00:05.1]} 55... Rc4+ {[%clk 0:00:03.4]} 56.
Kg3 {[%clk 0:00:05.6]} 56... Rc3+ {[%clk 0:00:04]} 57. Kh4 {[%clk 0:00:05.7]}
57... Kf5 {[%clk 0:00:04.2]} 58. Rf7+ {[%clk 0:00:05.1]} 58... Ke6 {[%clk
0:00:02.4]} 59. Rxh7 {[%clk 0:00:06]} 59... Rc1 {[%clk 0:00:02.5]} 60. Rg7
{[%clk 0:00:05.7]} 60... Rh1+ {[%clk 0:00:02.8]} 61. Kg4 {[%clk 0:00:05.5]}
61... Rg1+ {[%clk 0:00:03]} 62. Kf4 {[%clk 0:00:06.4]} 62... Rf1+ {[%clk
0:00:03.1]} 63. Ke4 {[%clk 0:00:07]} 63... Re1+ {[%clk 0:00:03.8]} 64. Kd3
{[%clk 0:00:07.3]} 64... Kf5 {[%clk 0:00:04.3]} 65. h7 {[%clk 0:00:07.3]} 65...
Rh1 {[%clk 0:00:04.8]} 66. Kc4 {[%clk 0:00:07.4]} 66... Kxg5 {[%clk 0:00:05.1]}
67. Kxc5 {[%clk 0:00:08]} 67... Kf6 {[%clk 0:00:05.5]} 68. Rb7 {[%clk
0:00:08.6]} 68... g5 {[%clk 0:00:05.2]} 69. Kd4 {[%clk 0:00:09.5]} 69... Kg6
{[%clk 0:00:05.6]} 70. Ke4 {[%clk 0:00:09.4]} 70... Rxh7 {[%clk 0:00:04]} 71.
Rxh7 {[%clk 0:00:08.9]} 71... Kxh7 {[%clk 0:00:04.9]} 72. Kf5 {[%clk 0:00:09.5]}
72... g4 {[%clk 0:00:05.5]} 73. Kxg4 {[%clk 0:00:10.2]} 1/2-1/2

[Event "Early-Titled-Tuesday-Blitz-April-16-2024"]
[Site "Chess.com"]
[Date "2024.04.16"]
[Round "5"]
[White "LiemLe"]
[Black "Zhigalko_Sergei"]
[Result "0-1"]
[WhiteElo "3040"]
[BlackElo "2919"]
[TimeControl "180+1"]
[EndTime "8:57:32 PDT"]
[Termination "Zhigalko_Sergei won by checkmate"]

1. Nf3 {[%clk 0:03:00.9]} 1... d5 {[%clk 0:02:55.6]} 2. e3 {[%clk 0:02:59.7]}
2... Nf6 {[%clk 0:02:55.4]} 3. c4 {[%clk 0:02:59.7]} 3... e6 {[%clk 0:02:55.7]}
4. b3 {[%clk 0:02:59.5]} 4... Bd6 {[%clk 0:02:55.7]} 5. Bb2 {[%clk 0:03:00.1]}
5... O-O {[%clk 0:02:55.4]} 6. Nc3 {[%clk 0:03:00]} 6... c5 {[%clk 0:02:44.6]}
7. g4 {[%clk 0:02:59.1]} 7... d4 {[%clk 0:02:34.2]} 8. exd4 {[%clk 0:03:00]}
8... cxd4 {[%clk 0:02:34.8]} 9. Nxd4 {[%clk 0:02:55.5]} 9... e5 {[%clk
0:02:34.8]} 10. Nf5 {[%clk 0:02:52.7]} 10... Bxf5 {[%clk 0:02:34.6]} 11. gxf5
{[%clk 0:02:53.6]} 11... Nc6 {[%clk 0:02:32.3]} 12. Bg2 {[%clk 0:02:46.3]} 12...
Bc5 {[%clk 0:02:15.5]} 13. Bxc6 {[%clk 0:02:36.6]} 13... bxc6 {[%clk 0:02:13.6]}
14. Qe2 {[%clk 0:02:33.6]} 14... Bd4 {[%clk 0:01:32.2]} 15. O-O-O {[%clk
0:02:30.6]} 15... Qd7 {[%clk 0:01:26.1]} 16. Ne4 {[%clk 0:01:50.3]} 16... Bxb2+
{[%clk 0:01:23.2]} 17. Kxb2 {[%clk 0:01:51.2]} 17... Qxf5 {[%clk 0:01:23.2]} 18.
Rhe1 {[%clk 0:01:43]} 18... a5 {[%clk 0:00:25.7]} 19. Nxf6+ {[%clk 0:01:25.4]}
19... Qxf6 {[%clk 0:00:26.6]} 20. Qxe5 {[%clk 0:01:24.5]} 20... Qxf2 {[%clk
0:00:26.8]} 21. Re2 {[%clk 0:01:20]} 21... Qb6 {[%clk 0:00:23.5]} 22. a4 {[%clk
0:00:58.6]} 22... Rab8 {[%clk 0:00:20.4]} 23. Re3 {[%clk 0:00:58.2]} 23... Qb4
{[%clk 0:00:19.2]} 24. Kc2 {[%clk 0:00:58.5]} 24... Rfd8 {[%clk 0:00:13.4]} 25.
h4 {[%clk 0:00:55.5]} 25... Qf8 {[%clk 0:00:09.2]} 26. Qxa5 {[%clk 0:00:53.8]}
26... Re8 {[%clk 0:00:05.5]} 27. Rde1 {[%clk 0:00:48]} 27... Red8 {[%clk
0:00:04.6]} 28. Qc3 {[%clk 0:00:47.4]} 28... g6 {[%clk 0:00:04.4]} 29. h5 {[%clk
0:00:47.4]} 29... Qa3 {[%clk 0:00:04]} 30. Ra1 {[%clk 0:00:34.8]} 30... Qf8
{[%clk 0:00:04.7]} 31. hxg6 {[%clk 0:00:35.3]} 31... fxg6 {[%clk 0:00:04.6]} 32.
Rae1 {[%clk 0:00:28.1]} 32... Rb7 {[%clk 0:00:04.6]} 33. a5 {[%clk 0:00:23.2]}
33... Rbd7 {[%clk 0:00:04.4]} 34. d3 {[%clk 0:00:23.6]} 34... Qa3 {[%clk
0:00:04]} 35. Ra1 {[%clk 0:00:23.3]} 35... Qc5 {[%clk 0:00:04.6]} 36. Rae1
{[%clk 0:00:17.8]} 36... Qa3 {[%clk 0:00:04.4]} 37. Qa1 {[%clk 0:00:16.3]} 37...
Qd6 {[%clk 0:00:03.5]} 38. a6 {[%clk 0:00:16]} 38... Ra7 {[%clk 0:00:02.8]} 39.
Qa5 {[%clk 0:00:14.5]} 39... Qd7 {[%clk 0:00:02.1]} 40. Qxd8+ {[%clk 0:00:13.5]}
40... Qxd8 {[%clk 0:00:02.1]} 41. Re8+ {[%clk 0:00:14.4]} 41... Qxe8 {[%clk
0:00:02.5]} 42. Rxe8+ {[%clk 0:00:15.3]} 42... Kf7 {[%clk 0:00:03.1]} 43. Rc8
{[%clk 0:00:12]} 43... Rxa6 {[%clk 0:00:03.4]} 44. Rc7+ {[%clk 0:00:12.7]} 44...
Kg8 {[%clk 0:00:02.3]} 45. d4 {[%clk 0:00:13.2]} 45... h5 {[%clk 0:00:02.7]} 46.
Re7 {[%clk 0:00:11.8]} 46... g5 {[%clk 0:00:01.5]} 47. Re5 {[%clk 0:00:11.8]}
47... Kh7 {[%clk 0:00:01.6]} 48. Rxg5 {[%clk 0:00:12.1]} 48... Kh6 {[%clk
0:00:02.3]} 49. Re5 {[%clk 0:00:12.2]} 49... h4 {[%clk 0:00:02.6]} 50. Kc3
{[%clk 0:00:12.7]} 50... Ra1 {[%clk 0:00:02.6]} 51. Re6+ {[%clk 0:00:12.8]}
51... Kg5 {[%clk 0:00:03.1]} 52. Rxc6 {[%clk 0:00:13.7]} 52... h3 {[%clk
0:00:03.3]} 53. Rc8 {[%clk 0:00:10.8]} 53... h2 {[%clk 0:00:03.7]} 54. Rh8
{[%clk 0:00:11.4]} 54... h1=Q {[%clk 0:00:03.9]} 55. Rxh1 {[%clk 0:00:12.3]}
55... Rxh1 {[%clk 0:00:04.2]} 56. Kb4 {[%clk 0:00:13.2]} 56... Kf6 {[%clk
0:00:04.4]} 57. Kc5 {[%clk 0:00:13.6]} 57... Ke7 {[%clk 0:00:04.5]} 58. Kc6
{[%clk 0:00:13.4]} 58... Rb1 {[%clk 0:00:04]} 59. d5 {[%clk 0:00:13.1]} 59...
Rxb3 {[%clk 0:00:04.3]} 60. d6+ {[%clk 0:00:13.8]} 60... Ke6 {[%clk 0:00:03.9]}
61. c5 {[%clk 0:00:14.7]} 61... Rc3 {[%clk 0:00:03.4]} 62. d7 {[%clk 0:00:10]}
62... Rd3 {[%clk 0:00:03.5]} 63. Kc7 {[%clk 0:00:09.3]} 63... Rxd7+ {[%clk
0:00:03.5]} 64. Kb6 {[%clk 0:00:08]} 64... Rd1 {[%clk 0:00:03.5]} 65. c6 {[%clk
0:00:08.5]} 65... Rb1+ {[%clk 0:00:03]} 66. Kc7 {[%clk 0:00:08.8]} 66... Rc1
{[%clk 0:00:03.5]} 67. Kb7 {[%clk 0:00:08.9]} 67... Kd6 {[%clk 0:00:04.1]} 68.
c7 {[%clk 0:00:09.5]} 68... Rxc7+ {[%clk 0:00:04.4]} 69. Ka8 {[%clk 0:00:10.4]}
69... Rc1 {[%clk 0:00:04.9]} 70. Kb7 {[%clk 0:00:10.7]} 70... Rc2 {[%clk
0:00:05.2]} 71. Kb6 {[%clk 0:00:11.2]} 71... Rb2+ {[%clk 0:00:05.5]} 72. Ka5
{[%clk 0:00:12.1]} 72... Kc6 {[%clk 0:00:06]} 73. Ka4 {[%clk 0:00:13]} 73... Rb8
{[%clk 0:00:05.5]} 74. Ka3 {[%clk 0:00:13.9]} 74... Kc5 {[%clk 0:00:05.9]} 75.
Ka4 {[%clk 0:00:14.2]} 75... Rb7 {[%clk 0:00:06.1]} 76. Ka3 {[%clk 0:00:14.8]}
76... Kc4 {[%clk 0:00:06.6]} 77. Ka2 {[%clk 0:00:15.7]} 77... Kc3 {[%clk
0:00:07.1]} 78. Ka1 {[%clk 0:00:16.6]} 78... Kc2 {[%clk 0:00:07.6]} 79. Ka2
{[%clk 0:00:17.5]} 79... Ra7# {[%clk 0:00:08.2]} 0-1

[Event "Early-Titled-Tuesday-Blitz-April-16-2024"]
[Site "Chess.com"]
[Date "2024.04.16"]
[Round "5"]
[White "Rawnsdale"]
[Black "esrosenberg"]
[Result "0-1"]
[WhiteElo "2488"]
[BlackElo "2390"]
[TimeControl "180+1"]
[EndTime "8:57:39 PDT"]
[Termination "esrosenberg won by checkmate"]

1. e4 {[%clk 0:02:34.9]} 1... c5 {[%clk 0:02:54.3]} 2. Nf3 {[%clk 0:02:35.1]}
2... e6 {[%clk 0:02:54.5]} 3. d4 {[%clk 0:02:35.4]} 3... cxd4 {[%clk 0:02:55]}
4. Nxd4 {[%clk 0:02:36.3]} 4... Nf6 {[%clk 0:02:54.7]} 5. Nc3 {[%clk 0:02:35.9]}
5... Nc6 {[%clk 0:02:55.3]} 6. Nxc6 {[%clk 0:02:26.3]} 6... bxc6 {[%clk
0:02:54.3]} 7. Bd3 {[%clk 0:02:27]} 7... d5 {[%clk 0:02:49.3]} 8. O-O {[%clk
0:02:26.5]} 8... Be7 {[%clk 0:02:46.5]} 9. Qf3 {[%clk 0:02:20.6]} 9... O-O
{[%clk 0:02:45.7]} 10. e5 {[%clk 0:02:19]} 10... Nd7 {[%clk 0:02:45]} 11. Qh3
{[%clk 0:02:09]} 11... g6 {[%clk 0:02:40.7]} 12. Bh6 {[%clk 0:02:05.6]} 12...
Nxe5 {[%clk 0:02:35.1]} 13. Bxf8 {[%clk 0:02:04.5]} 13... Bxf8 {[%clk
0:02:28.6]} 14. Rad1 {[%clk 0:02:02.3]} 14... Nxd3 {[%clk 0:02:27.8]} 15. Qxd3
{[%clk 0:02:01.7]} 15... a5 {[%clk 0:02:25]} 16. Rfe1 {[%clk 0:02:01.5]} 16...
Bg7 {[%clk 0:02:21.9]} 17. Na4 {[%clk 0:01:56.3]} 17... Rb8 {[%clk 0:02:13.5]}
18. b3 {[%clk 0:01:54.7]} 18... Qd6 {[%clk 0:02:11.3]} 19. c4 {[%clk 0:01:54.2]}
19... h5 {[%clk 0:02:07.4]} 20. c5 {[%clk 0:01:37.8]} 20... Qe7 {[%clk
0:02:05.2]} 21. Qd2 {[%clk 0:01:30.3]} 21... Rb4 {[%clk 0:02:03.2]} 22. Nb6
{[%clk 0:01:05.8]} 22... Ba6 {[%clk 0:01:36.6]} 23. Qc2 {[%clk 0:01:02.1]} 23...
Bb5 {[%clk 0:01:12.7]} 24. a3 {[%clk 0:00:55]} 24... Rg4 {[%clk 0:01:08.2]} 25.
h3 {[%clk 0:00:52.3]} 25... Rh4 {[%clk 0:01:04.3]} 26. Nc8 {[%clk 0:00:50.7]}
26... Qg5 {[%clk 0:01:00.8]} 27. Re3 {[%clk 0:00:47.9]} 27... Bd4 {[%clk
0:00:58.2]} 28. Rf3 {[%clk 0:00:43]} 28... Re4 {[%clk 0:00:52.4]} 29. Nd6 {[%clk
0:00:31.7]} 29... Rf4 {[%clk 0:00:48.4]} 30. Rxf4 {[%clk 0:00:28.7]} 30... Qxf4
{[%clk 0:00:46.5]} 31. Nxb5 {[%clk 0:00:28.6]} 31... cxb5 {[%clk 0:00:47.2]} 32.
c6 {[%clk 0:00:28.9]} 32... Be5 {[%clk 0:00:44.5]} 33. g3 {[%clk 0:00:28.4]}
33... Qf3 {[%clk 0:00:41]} 34. Rd3 {[%clk 0:00:18.1]} 34... Qe4 {[%clk
0:00:38.2]} 35. Qd2 {[%clk 0:00:18.5]} 35... Bc7 {[%clk 0:00:37.7]} 36. Re3
{[%clk 0:00:17.9]} 36... Qb1+ {[%clk 0:00:37]} 37. Kg2 {[%clk 0:00:17.7]} 37...
Qa1 {[%clk 0:00:28.1]} 38. a4 {[%clk 0:00:15.9]} 38... bxa4 {[%clk 0:00:26.4]}
39. bxa4 {[%clk 0:00:16.5]} 39... Qxa4 {[%clk 0:00:26.2]} 40. Qc1 {[%clk
0:00:13.3]} 40... Kg7 {[%clk 0:00:19.8]} 41. Qb2+ {[%clk 0:00:12]} 41... d4
{[%clk 0:00:18.7]} 42. Re4 {[%clk 0:00:07.4]} 42... Qxc6 {[%clk 0:00:19.1]} 43.
Qxd4+ {[%clk 0:00:07]} 43... e5 {[%clk 0:00:17.9]} 44. Qc4 {[%clk 0:00:07.4]}
44... Qxc4 {[%clk 0:00:16]} 45. Rxc4 {[%clk 0:00:08.3]} 45... Bb6 {[%clk
0:00:13.3]} 46. Rc6 {[%clk 0:00:08.5]} 46... Bd4 {[%clk 0:00:13.4]} 47. Ra6
{[%clk 0:00:08.2]} 47... f5 {[%clk 0:00:12.6]} 48. Rxa5 {[%clk 0:00:07.9]} 48...
h4 {[%clk 0:00:12]} 49. Ra6 {[%clk 0:00:07.7]} 49... hxg3 {[%clk 0:00:11.1]} 50.
fxg3 {[%clk 0:00:08.6]} 50... e4 {[%clk 0:00:11]} 51. Kf1 {[%clk 0:00:07.9]}
51... g5 {[%clk 0:00:10.3]} 52. Ra5 {[%clk 0:00:06.3]} 52... Kg6 {[%clk
0:00:09.7]} 53. g4 {[%clk 0:00:06.6]} 53... f4 {[%clk 0:00:09.5]} 54. Ke2 {[%clk
0:00:06.7]} 54... f3+ {[%clk 0:00:09.2]} 55. Kf1 {[%clk 0:00:07.1]} 55... e3
{[%clk 0:00:09.1]} 56. Rf5 {[%clk 0:00:07]} 56... e2+ {[%clk 0:00:08.6]} 57. Ke1
{[%clk 0:00:05.4]} 57... Bc3+ {[%clk 0:00:08.4]} 58. Kf2 {[%clk 0:00:05.5]}
58... e1=Q+ {[%clk 0:00:08.4]} 59. Kxf3 {[%clk 0:00:06.4]} 59... Qf1+ {[%clk
0:00:07.6]} 60. Ke4 {[%clk 0:00:06.8]} 60... Qxh3 {[%clk 0:00:07.2]} 61. Rc5
{[%clk 0:00:04.5]} 61... Qxg4+ {[%clk 0:00:07.5]} 62. Kd3 {[%clk 0:00:04.5]}
62... Qf3+ {[%clk 0:00:06.1]} 63. Kc2 {[%clk 0:00:04.4]} 63... Bf6 {[%clk
0:00:05.3]} 64. Rc4 {[%clk 0:00:04]} 64... Qe2+ {[%clk 0:00:04.1]} 65. Kb3
{[%clk 0:00:04.3]} 65... Qxc4+ {[%clk 0:00:03]} 66. Kxc4 {[%clk 0:00:05.2]}
66... Kf5 {[%clk 0:00:02.7]} 67. Kd3 {[%clk 0:00:06.1]} 67... Kg4 {[%clk
0:00:02.9]} 68. Ke2 {[%clk 0:00:07]} 68... Kh3 {[%clk 0:00:03.2]} 69. Kf1 {[%clk
0:00:07.9]} 69... Kh2 {[%clk 0:00:03.2]} 70. Kf2 {[%clk 0:00:08.1]} 70... g4
{[%clk 0:00:03.6]} 71. Kf1 {[%clk 0:00:08.5]} 71... g3 {[%clk 0:00:04.5]} 72.
Ke2 {[%clk 0:00:08.7]} 72... g2 {[%clk 0:00:05.4]} 73. Kf3 {[%clk 0:00:09.6]}
73... g1=Q {[%clk 0:00:05.5]} 74. Kf4 {[%clk 0:00:10.5]} 74... Qg3+ {[%clk
0:00:05.3]} 75. Kf5 {[%clk 0:00:11.4]} 75... Qf3+ {[%clk 0:00:05.1]} 76. Ke6
{[%clk 0:00:12.3]} 76... Bh4 {[%clk 0:00:04.6]} 77. Ke5 {[%clk 0:00:11.7]} 77...
Qf6+ {[%clk 0:00:04.2]} 78. Ke4 {[%clk 0:00:11.5]} 78... Kg3 {[%clk 0:00:05.1]}
79. Kd3 {[%clk 0:00:11.7]} 79... Kf4 {[%clk 0:00:05.6]} 80. Ke2 {[%clk
0:00:12.6]} 80... Qc3 {[%clk 0:00:04.2]} 81. Kf1 {[%clk 0:00:13]} 81... Qd2
{[%clk 0:00:02]} 82. Kg1 {[%clk 0:00:13]} 82... Kf3 {[%clk 0:00:01.7]} 83. Kh1
{[%clk 0:00:13.9]} 83... Qg2# {[%clk 0:00:01.2]} 0-1

[Event "Early-Titled-Tuesday-Blitz-April-16-2024"]
[Site "Chess.com"]
[Date "2024.04.16"]
[Round "5"]
[White "andrew-blr"]
[Black "PLAYER_2006_M"]
[Result "0-1"]
[WhiteElo "2660"]
[BlackElo "2975"]
[TimeControl "180+1"]
[EndTime "8:57:43 PDT"]
[Termination "PLAYER_2006_M won on time"]

1. d4 {[%clk 0:02:54.3]} 1... e6 {[%clk 0:02:55.5]} 2. c4 {[%clk 0:02:54.2]}
2... b6 {[%clk 0:02:55.5]} 3. Nc3 {[%clk 0:02:50.8]} 3... Bb7 {[%clk 0:02:54.4]}
4. f3 {[%clk 0:02:50.4]} 4... Bb4 {[%clk 0:02:49.2]} 5. a3 {[%clk 0:02:49.8]}
5... Bxc3+ {[%clk 0:02:49.4]} 6. bxc3 {[%clk 0:02:50.7]} 6... Ne7 {[%clk
0:02:44.1]} 7. e4 {[%clk 0:02:44.9]} 7... f5 {[%clk 0:02:40.9]} 8. e5 {[%clk
0:02:44.7]} 8... O-O {[%clk 0:02:40.5]} 9. f4 {[%clk 0:02:43.5]} 9... Nbc6
{[%clk 0:02:36.9]} 10. Nf3 {[%clk 0:02:43.3]} 10... Na5 {[%clk 0:02:31.2]} 11.
Bd3 {[%clk 0:02:38.2]} 11... Ba6 {[%clk 0:02:12.9]} 12. Qe2 {[%clk 0:02:37.6]}
12... Qc8 {[%clk 0:02:00.9]} 13. Be3 {[%clk 0:02:29.3]} 13... d5 {[%clk
0:01:56.3]} 14. c5 {[%clk 0:02:08.4]} 14... Bxd3 {[%clk 0:01:51]} 15. Qxd3
{[%clk 0:02:09.2]} 15... Nc4 {[%clk 0:01:41.8]} 16. O-O {[%clk 0:02:06.9]} 16...
bxc5 {[%clk 0:01:38.2]} 17. dxc5 {[%clk 0:02:06.8]} 17... Nc6 {[%clk 0:01:38.6]}
18. Bd4 {[%clk 0:02:05.5]} 18... Rb8 {[%clk 0:01:37.5]} 19. Rf2 {[%clk
0:02:01.4]} 19... h6 {[%clk 0:01:31.6]} 20. h3 {[%clk 0:02:00.8]} 20... Rb3
{[%clk 0:01:30.1]} 21. a4 {[%clk 0:01:58.4]} 21... Qd7 {[%clk 0:01:24.4]} 22.
Kh1 {[%clk 0:01:47.8]} 22... Qf7 {[%clk 0:01:16.9]} 23. Rg1 {[%clk 0:01:34.3]}
23... Qh5 {[%clk 0:01:05]} 24. Qf1 {[%clk 0:01:28.9]} 24... Rfb8 {[%clk
0:00:53.8]} 25. Kh2 {[%clk 0:01:16.5]} 25... a5 {[%clk 0:00:47.2]} 26. g4 {[%clk
0:01:16.1]} 26... fxg4 {[%clk 0:00:47.1]} 27. Rxg4 {[%clk 0:01:16]} 27... Ne7
{[%clk 0:00:47.4]} 28. Nh4 {[%clk 0:01:14.3]} 28... Rb2 {[%clk 0:00:27.6]} 29.
Qg2 {[%clk 0:01:12.4]} 29... Rxf2 {[%clk 0:00:27.5]} 30. Bxf2 {[%clk 0:01:11.5]}
30... Qf7 {[%clk 0:00:27.5]} 31. f5 {[%clk 0:01:04.4]} 31... Nxf5 {[%clk
0:00:18.9]} 32. Nxf5 {[%clk 0:01:02.5]} 32... exf5 {[%clk 0:00:19.8]} 33. e6
{[%clk 0:01:02]} 33... Qe7 {[%clk 0:00:20.3]} 34. Bh4 {[%clk 0:00:53.4]} 34...
Qf8 {[%clk 0:00:04.1]} 35. Qxd5 {[%clk 0:00:39.1]} 35... Ne3 {[%clk 0:00:03.1]}
36. e7+ {[%clk 0:00:24.3]} 36... Nxd5 {[%clk 0:00:03.2]} 37. exf8=Q+ {[%clk
0:00:23.8]} 37... Kxf8 {[%clk 0:00:04.1]} 38. Rd4 {[%clk 0:00:21.7]} 38... c6
{[%clk 0:00:04.6]} 39. c4 {[%clk 0:00:21.7]} 39... Nb4 {[%clk 0:00:04.5]} 40.
Rd7 {[%clk 0:00:21.3]} 40... g5 {[%clk 0:00:04.7]} 41. Bf2 {[%clk 0:00:19.7]}
41... Re8 {[%clk 0:00:03.2]} 42. Bd4 {[%clk 0:00:19.5]} 42... Re4 {[%clk
0:00:03.8]} 43. Bg7+ {[%clk 0:00:18.9]} 43... Ke8 {[%clk 0:00:03]} 44. Ra7
{[%clk 0:00:18]} 44... h5 {[%clk 0:00:02.7]} 45. Rxa5 {[%clk 0:00:18]} 45...
Rxc4 {[%clk 0:00:03.1]} 46. Bh6 {[%clk 0:00:16.6]} 46... g4 {[%clk 0:00:03.5]}
47. Ra8+ {[%clk 0:00:14.8]} 47... Kf7 {[%clk 0:00:03.6]} 48. a5 {[%clk
0:00:15.2]} 48... f4 {[%clk 0:00:02.5]} 49. a6 {[%clk 0:00:14.3]} 49... Rc2+
{[%clk 0:00:02.5]} 50. Kg1 {[%clk 0:00:14.3]} 50... Ra2 {[%clk 0:00:01.9]} 51.
Bxf4 {[%clk 0:00:13.5]} 51... Rxa6 {[%clk 0:00:02.1]} 52. Rh8 {[%clk 0:00:11.5]}
52... Nd5 {[%clk 0:00:02.6]} 53. Bd6 {[%clk 0:00:11]} 53... Kg6 {[%clk
0:00:03.1]} 54. hxg4 {[%clk 0:00:10.9]} 54... hxg4 {[%clk 0:00:04]} 55. Kg2
{[%clk 0:00:11.3]} 55... Kf5 {[%clk 0:00:04]} 56. Rf8+ {[%clk 0:00:10.7]} 56...
Ke4 {[%clk 0:00:04.4]} 57. Kg3 {[%clk 0:00:10.3]} 57... Ra1 {[%clk 0:00:03.6]}
58. Kxg4 {[%clk 0:00:09.2]} 58... Rg1+ {[%clk 0:00:03.9]} 59. Kh3 {[%clk
0:00:09.5]} 59... Rd1 {[%clk 0:00:02.5]} 60. Rc8 {[%clk 0:00:08.6]} 60... Kf3
{[%clk 0:00:02.9]} 61. Rf8+ {[%clk 0:00:08.1]} 61... Ke4 {[%clk 0:00:03.6]} 62.
Rc8 {[%clk 0:00:08]} 62... Rh1+ {[%clk 0:00:02.4]} 63. Kg2 {[%clk 0:00:07.6]}
63... Rh6 {[%clk 0:00:02.6]} 64. Rxc6 {[%clk 0:00:05.9]} 64... Ne3+ {[%clk
0:00:03.3]} 65. Kf2 {[%clk 0:00:04.4]} 65... Rg6 {[%clk 0:00:03.8]} 66. Rc8
{[%clk 0:00:02.9]} 66... Rg2+ {[%clk 0:00:04.1]} 67. Ke1 {[%clk 0:00:03.4]}
67... Kd3 {[%clk 0:00:04.7]} 0-1